lending/lending_fUSD_20250819
["ID","MTS","AMOUNT","RATE_DAILY","PERIOD"]
[380128404,1755562019773,400.0,0.000221,120]
[380128580,1755562239993,-216.45,9.986e-05,2]
[380128582,1755562240003,-2000.0,9.994e-05,2]
[380128584,1755562240013,-166.29,0.00010002,2]
[380128586,1755562240023,-390.99499775,0.00010006,2]
[380128717,1755562241359,-386.0569015,0.00010006,2]
[380128719,1755562241371,-222.94810075,0.00010006,2]
[380128721,1755562241381,-65.65103195,0.00010016,7]
[380128924,1755562243395,-104.34896805,0.00010016,7]
[380128926,1755562243405,-403.21,0.00010075,2]
[380128928,1755562243415,-274.92924869,0.00010422,2]
[380128930,1755562243425,-200.0,0.00010426,2]
[380128932,1755562243435,-212.00699823,0.00010879,2]
[380128934,1755562243444,-150.0,0.00010892,2]
[380128936,1755562243454,-299.99,0.00010892,2]
[380128938,1755562243464,-300.0,0.00010892,2]
[380128940,1755562243474,-1200.0,0.00010892,2]
[380128942,1755562243484,-277.35679052,0.00010893,2]
[380128944,1755562243493,-8189.52,0.00010893,2]
[380128946,1755562243502,-226.46276226,0.00010893,2]
[380129222,1755562246185,-1218.41693368,0.00010893,2]
[380129763,1755562285909,4771.63,9.5e-05,2]
[380129764,1755562393899,3000.0,8.571e-05,2]
[380129765,1755562466243,2000.0,0.00021,90]
[380129766,1755562518283,1000.0,9e-05,2]
[380129767,1755562579354,2000.0,0.0001,10]
[380129768,1755562812402,174.63150957,0.00013124,11]
[380129769,1755562829070,23964.84119095,0.00021,90]
[380129770,1755562868011,10000.000001,0.00022,120]
[380129786,1755563294270,1505.0190699,0.00012,10]
[380129845,1755563432884,-174.44,9.718e-05,2]
[380129847,1755563432895,-170.0,9.836e-05,7]
[380129849,1755563432905,-1200.0,9.887e-05,2]
[380129851,1755563432914,-150.0,9.888e-05,2]
[380129853,1755563432924,-150.0,9.888e-05,2]
[380129855,1755563432934,-150.0,9.888e-05,2]
[380129857,1755563432943,-150.0,9.888e-05,2]
[380129859,1755563432953,-151.77,9.888e-05,2]
[380129861,1755563432962,-150.0,9.888e-05,2]
[380129863,1755563432971,-150.0,9.888e-05,2]
[380129865,1755563432980,-280.23617958,9.888e-05,2]
[380129867,1755563432990,-266.67355584,9.888e-05,2]
[380129869,1755563432999,-150.0,9.888e-05,2]
[380129871,1755563433009,-150.0,9.888e-05,2]
[380129873,1755563433018,-150.0,9.888e-05,2]
[380129875,1755563433027,-185.42467579,9.888e-05,2]
[380129876,1755563433036,-150.0,9.888e-05,2]
[380129877,1755563433048,-2000.0,9.914e-05,2]
[380129878,1755563433058,-3000.0,9.941e-05,2]
[380129879,1755563433067,-322.56,9.947e-05,2]
[380129880,1755563433076,-216.45,9.952e-05,2]
[380129881,1755563433084,-1000.0,9.957e-05,2]
[380129882,1755563433093,-500.0,0.0001,3]
[380129883,1755563433103,-1000.0,0.000101,3]
[380129884,1755563433112,-1500.0,0.000102,3]
[380129885,1755563433122,-168.23,0.00010267,2]
[380129886,1755563433131,-1267.78862078,0.000103,3]
[380129887,1755563433143,-832.21137922,0.000103,3]
[380129888,1755563433152,-2600.0,0.000104,3]
[380129889,1755563433162,-150.0,0.0001044,2]
[380129891,1755563433171,-250.22689341,0.00010441,2]
[380129900,1755563433249,-1346.17310659,0.00010441,2]
[380129901,1755563433259,-798.63,0.00010441,2]
[380129902,1755563433268,-277.35679052,0.00010444,2]
[380129903,1755563433278,-414.74,0.00010475,2]
[380129904,1755563433288,-150.99,0.00010475,2]
[380129905,1755563433298,-453.20130288,0.00010475,2]
[380129906,1755563433310,-431.25,0.00010475,2]
[380129907,1755563433341,-624.94869712,0.00010475,2]
[380129908,1755563433350,-885.23905968,0.00010475,2]
[380129976,1755563439010,-114.75094032,0.00010475,2]
[380129977,1755563439021,-599.2710553,0.00010475,2]
[380129980,1755563440192,-265.5329326,9.912e-05,2]
[380129981,1755563440202,-77.1270674,9.912e-05,2]
[380129982,1755563440334,-83.9067253,9.912e-05,2]
[380129983,1755563440343,-1932.8032747,0.00010475,2]
[380129985,1755563443412,-5931.0,0.00010475,2]
[380130237,1755563446079,-92.03567,0.00010475,2]
[380130239,1755563446089,-1447.10460129,0.00010475,2]
[380130256,1755563446242,-1831.4239856,0.00010475,2]
[380130278,1755563446466,-766.51473928,0.00010475,2]
[380130281,1755563446478,-1075.39999999,0.00010475,2]
[380130284,1755563915927,1000.0,7.986e-05,2]
[380130285,1755563915994,1000.0,9.435e-05,2]
[380130286,1755563970538,370.0,0.00021,90]
[380130288,1755564096029,166.04,9.236e-05,2]
[380130289,1755564223582,1000.0,9.132e-05,2]
[380130290,1755564235903,1203.36,9.118e-05,2]
[380130291,1755564282976,1373.78,9.153e-05,2]
[380130293,1755564324485,400.0,0.000221,120]
[380130294,1755564348229,3000.0,0.000221,120]
[380130297,1755564423733,525.91594648,9.399e-05,2]
[380130302,1755564546223,1852.42,8.981e-05,2]
[380130304,1755564590891,169.08,9.23e-05,2]
[380130305,1755564610917,174.63150957,0.00013396,12]
[380130306,1755564632650,-300.0,9.691e-05,2]
[380130307,1755564632660,-150.0,9.692e-05,2]
[380130308,1755564632669,-250.0,9.692e-05,2]
[380130309,1755564632678,-300.0,9.692e-05,2]
[380130310,1755564632687,-295.31503262,9.693e-05,2]
[380130311,1755564632749,-904.68496738,9.693e-05,2]
[380130312,1755564632760,-262.06878419,9.693e-05,2]
[380130313,1755564632769,-150.0,9.693e-05,2]
[380130314,1755564632780,-150.0,9.694e-05,2]
[380130315,1755564632790,-300.0,9.694e-05,2]
[380130316,1755564632800,-756.08,9.695e-05,2]
[380130317,1755564632809,-213.0,9.744e-05,2]
[380130318,1755564632819,-151.41,9.745e-05,2]
[380130319,1755564632829,-151.41,9.794e-05,2]
[380130320,1755564632839,-250.0,9.824e-05,2]
[380130321,1755564632849,-170.0,9.836e-05,7]
[380130322,1755564632859,-243.83,9.84e-05,2]
[380130323,1755564632869,-150.0,9.84e-05,2]
[380130324,1755564632878,-945.04,9.84e-05,2]
[380130325,1755564632888,-151.41,9.843e-05,2]
[380130326,1755564632898,-5000.0,9.885e-05,2]
[380130327,1755564632907,-150.0,9.888e-05,2]
[380130328,1755564632917,-150.0,9.888e-05,2]
[380130329,1755564632926,-150.0,9.888e-05,2]
[380130330,1755564632936,-150.0,9.888e-05,2]
[380130331,1755564632946,-150.0,9.888e-05,2]
[380130332,1755564632955,-150.0,9.888e-05,2]
[380130333,1755564632965,-150.0,9.888e-05,2]
[380130334,1755564632974,-150.0,9.888e-05,2]
[380130335,1755564632983,-150.0,9.888e-05,2]
[380130336,1755564632993,-150.0,9.888e-05,2]
[380130337,1755564633003,-151.0,9.89e-05,2]
[380130338,1755564633013,-892.325783,9.89e-05,2]
[380130339,1755564633023,-151.0,9.89e-05,2]
[380130340,1755564633032,-892.325783,9.89e-05,2]
[380130341,1755564633042,-151.0,9.89e-05,2]
[380130342,1755564633051,-892.325783,9.89e-05,2]
[380130343,1755564633061,-892.325783,9.89e-05,2]
[380130344,1755564633071,-3594.393486,9.89e-05,2]
[380130345,1755564633081,-3594.393486,9.89e-05,2]
[380130346,1755564633093,-1230.087008,9.89e-05,2]
[380130347,1755564633105,-3594.393486,9.89e-05,2]
[380130348,1755564633114,-1230.087008,9.89e-05,2]
[380130349,1755564633124,-3594.393486,9.89e-05,2]
[380130350,1755564633134,-4142.597565,9.89e-05,2]
[380130351,1755564633144,-1230.087008,9.89e-05,2]
[380130352,1755564633153,-1230.087008,9.89e-05,2]
[380130353,1755564633164,-4142.597565,9.89e-05,2]
[380130354,1755564633174,-151.0,9.89e-05,2]
[380130355,1755564633184,-151.0,9.89e-05,2]
[380130356,1755564633194,-4142.597565,9.89e-05,2]
[380130357,1755564633203,-5000.0,9.89e-05,2]
[380130358,1755564633213,-2500.0,9.89e-05,2]
[380130359,1755564633222,-151.0,9.953e-05,2]
[380130360,1755564633232,-892.325783,9.953e-05,2]
[380130361,1755564633241,-151.0,9.953e-05,2]
[380130362,1755564633251,-892.325783,9.953e-05,2]
[380130363,1755564633260,-151.0,9.953e-05,2]
[380130364,1755564633269,-892.325783,9.953e-05,2]
[380130365,1755564633278,-892.325783,9.953e-05,2]
[380130366,1755564633288,-3594.393486,9.953e-05,2]
[380130367,1755564633298,-3594.393486,9.953e-05,2]
[380130368,1755564633308,-1230.087008,9.953e-05,2]
[380130369,1755564633317,-3594.393486,9.953e-05,2]
[380130370,1755564633327,-1230.087008,9.953e-05,2]
[380130371,1755564633337,-3594.393486,9.953e-05,2]
[380130372,1755564633346,-4142.597565,9.953e-05,2]
[380130373,1755564633357,-1230.087008,9.953e-05,2]
[380130374,1755564633367,-1230.087008,9.953e-05,2]
[380130375,1755564633377,-3013.22911856,9.953e-05,2]
[380130377,1755564637193,-211.808028,9.89e-05,2]
[380130378,1755564637203,-913.461254,9.89e-05,2]
[380130379,1755564637213,-1769.02885,9.89e-05,2]
[380130380,1755564637223,-4142.597565,9.89e-05,2]
[380130381,1755564637232,-313.497371,9.89e-05,2]
[380130382,1755564637241,-913.461254,9.89e-05,2]
[380130383,1755564637252,-292.783779,9.89e-05,2]
[380130384,1755564637263,-101.08388838,9.89e-05,2]
[380130385,1755564637276,-212.41348262,9.89e-05,2]
[380130386,1755564637287,-1129.36844644,9.953e-05,2]
[380130387,1755564637298,-151.0,9.953e-05,2]
[380130388,1755564637309,-4142.597565,9.953e-05,2]
[380130389,1755564637318,-913.461254,9.953e-05,2]
[380130390,1755564637327,-714.30072966,9.953e-05,2]
[380130403,1755564638608,-913.461254,9.89e-05,2]
[380130405,1755564638618,-292.783779,9.89e-05,2]
[380130407,1755564638628,-313.497371,9.89e-05,2]
[380130409,1755564638638,-906.41800002,9.89e-05,2]
[380130422,1755564640471,-290.6827514,9.689e-05,2]
[380130423,1755564640483,-67.76046003,9.689e-05,2]
[380130424,1755564640493,-500.0,9.689e-05,2]
[380130425,1755564640503,-278.18519485,9.689e-05,2]
[380130426,1755564640512,-7.04325398,9.89e-05,2]
[380130427,1755564640522,-292.783779,9.89e-05,2]
[380130428,1755564640531,-313.497371,9.89e-05,2]
[380130429,1755564640540,-292.783779,9.89e-05,2]
[380130430,1755564640549,-1054.72812034,9.953e-05,2]
[380130431,1755564640559,-1268.0680418,9.953e-05,2]
[380130432,1755564640585,-2874.5295232,9.953e-05,2]
[380130433,1755564640594,-313.497371,9.953e-05,2]
[380130434,1755564640606,-913.461254,9.953e-05,2]
[380130435,1755564640616,-292.783779,9.953e-05,2]
[380130436,1755564640626,-313.497371,9.953e-05,2]
[380130438,1755564640636,-913.461254,9.953e-05,2]
[380130440,1755564640645,-292.783779,9.953e-05,2]
[380130442,1755564640654,-313.497371,9.953e-05,2]
[380130443,1755564640664,-913.461254,9.953e-05,2]
[380130445,1755564640673,-292.783779,9.953e-05,2]
[380130447,1755564640682,-313.497371,9.953e-05,2]
[380130448,1755564640692,-151.0,9.953e-05,2]
[380130450,1755564640702,-17878.16851425,9.953e-05,2]
[380130451,1755564640711,-500.0,9.963e-05,2]
[380130452,1755564640721,-500.0,9.963e-05,2]
[380130453,1755564640730,-500.0,9.963e-05,2]
[380130454,1755564640740,-1742.942348,9.963e-05,2]
[380130455,1755564640750,-1742.942348,9.963e-05,2]
[380130456,1755564640759,-1742.942348,9.963e-05,2]
[380130457,1755564640769,-1742.942348,9.963e-05,2]
[380130458,1755564640779,-151.0,9.963e-05,2]
[380130459,1755564640788,-151.0,9.963e-05,2]
[380130460,1755564640798,-151.0,9.963e-05,2]
[380130461,1755564640807,-818.800331,9.963e-05,2]
[380130462,1755564640817,-151.0,9.963e-05,2]
[380130463,1755564640827,-262.081623,9.963e-05,2]
[380130464,1755564640837,-151.0,9.963e-05,2]
[380130465,1755564640846,-818.800331,9.963e-05,2]
[380130466,1755564640856,-151.0,9.963e-05,2]
[380130467,1755564640865,-151.0,9.963e-05,2]
[380130468,1755564640875,-818.800331,9.963e-05,2]
[380130469,1755564640884,-818.800331,9.963e-05,2]
[380130470,1755564640894,-273.887535,9.963e-05,2]
[380130471,1755564640903,-151.0,9.963e-05,2]
[380130472,1755564640912,-151.0,9.963e-05,2]
[380130473,1755564640922,-151.0,9.963e-05,2]
[380130474,1755564640931,-222.073318,9.963e-05,2]
[380130475,1755564640940,-222.073318,9.963e-05,2]
[380130476,1755564640949,-1292.667789,9.963e-05,2]
[380130477,1755564640958,-222.073318,9.963e-05,2]
[380130478,1755564640968,-1292.667789,9.963e-05,2]
[380130479,1755564640978,-3453.872364,9.963e-05,2]
[380130480,1755564640988,-151.0,9.963e-05,2]
[380130481,1755564640997,-222.073318,9.963e-05,2]
[380130482,1755564641006,-3453.872364,9.963e-05,2]
[380130483,1755564641015,-1292.667789,9.963e-05,2]
[380130484,1755564641025,-151.0,9.963e-05,2]
[380130485,1755564641034,-947.809486,9.963e-05,2]
[380130486,1755564641044,-3453.872364,9.963e-05,2]
[380130487,1755564641053,-1292.667789,9.963e-05,2]
[380130488,1755564641063,-151.0,9.963e-05,2]
[380130489,1755564641073,-3453.872364,9.963e-05,2]
[380130490,1755564641084,-947.809486,9.963e-05,2]
[380130491,1755564641095,-947.809486,9.963e-05,2]
[380130492,1755564641106,-947.809486,9.963e-05,2]
[380130493,1755564641116,-413.454501,9.963e-05,2]
[380130494,1755564641127,-413.454501,9.963e-05,2]
[380130495,1755564641137,-151.0,9.963e-05,2]
[380130496,1755564641147,-413.454501,9.963e-05,2]
[380130497,1755564641159,-151.0,9.963e-05,2]
[380130498,1755564641169,-413.454501,9.963e-05,2]
[380130499,1755564641179,-377.39459,9.963e-05,2]
[380130500,1755564641190,-151.0,9.963e-05,2]
[380130501,1755564641201,-377.39459,9.963e-05,2]
[380130502,1755564641210,-377.39459,9.963e-05,2]
[380130503,1755564641220,-377.39459,9.963e-05,2]
[380130504,1755564641230,-151.0,9.963e-05,2]
[380130505,1755564641241,-159.803931,9.963e-05,2]
[380130506,1755564641251,-3187.642953,9.963e-05,2]
[380130507,1755564641262,-3187.642953,9.963e-05,2]
[380130508,1755564641272,-3187.642953,9.963e-05,2]
[380130509,1755564641282,-3187.642953,9.963e-05,2]
[380130510,1755564641291,-151.83878,9.963e-05,2]
[380130511,1755564641301,-683.620058,9.963e-05,2]
[380130512,1755564641311,-683.620058,9.963e-05,2]
[380130513,1755564641320,-683.620058,9.963e-05,2]
[380130514,1755564641330,-683.620058,9.963e-05,2]
[380130515,1755564641340,-151.0,9.963e-05,2]
[380130516,1755564641349,-151.0,9.963e-05,2]
[380130517,1755564641360,-151.0,9.963e-05,2]
[380130518,1755564641370,-151.0,9.963e-05,2]
[380130519,1755564641379,-151.0,9.963e-05,2]
[380130520,1755564641389,-12000.0,9.963e-05,2]
[380130521,1755564641398,-151.0,9.963e-05,2]
[380130522,1755564641408,-151.0,9.963e-05,2]
[380130523,1755564641418,-151.0,9.963e-05,2]
[380130524,1755564641427,-151.0,9.963e-05,2]
[380130525,1755564641438,-151.0,9.963e-05,2]
[380130526,1755564641447,-12000.0,9.963e-05,2]
[380130527,1755564641457,-151.0,9.963e-05,2]
[380130528,1755564641466,-348.760252,9.963e-05,2]
[380130529,1755564641476,-151.0,9.963e-05,2]
[380130530,1755564641486,-348.760252,9.963e-05,2]
[380130531,1755564641496,-151.0,9.963e-05,2]
[380130532,1755564641507,-348.760252,9.963e-05,2]
[380130533,1755564641516,-151.0,9.963e-05,2]
[380130534,1755564641526,-151.0,9.963e-05,2]
[380130535,1755564641536,-12000.0,9.963e-05,2]
[380130536,1755564641545,-151.0,9.963e-05,2]
[380130537,1755564641555,-151.0,9.963e-05,2]
[380130538,1755564641564,-151.0,9.963e-05,2]
[380130539,1755564641573,-151.0,9.963e-05,2]
[380130540,1755564641886,-151.0,9.963e-05,2]
[380130541,1755564641922,-151.0,9.963e-05,2]
[380130542,1755564641931,-151.0,9.963e-05,2]
[380130543,1755564641940,-151.0,9.963e-05,2]
[380130544,1755564641950,-151.0,9.963e-05,2]
[380130545,1755564641959,-12000.0,9.963e-05,2]
[380130546,1755564641968,-151.0,9.963e-05,2]
[380130547,1755564641978,-151.0,9.963e-05,2]
[380130548,1755564641987,-151.0,9.963e-05,2]
[380130549,1755564641998,-151.0,9.963e-05,2]
[380130550,1755564642008,-189.445251,9.963e-05,2]
[380130551,1755564642017,-159.349877,9.963e-05,2]
[380130552,1755564642032,-151.0,9.963e-05,2]
[380130553,1755564642042,-151.0,9.963e-05,2]
[380130554,1755564642052,-254.691164,9.963e-05,2]
[380130555,1755564642061,-12000.0,9.963e-05,2]
[380130556,1755564642071,-151.0,9.963e-05,2]
[380130557,1755564642085,-151.0,9.963e-05,2]
[380130558,1755564642097,-151.0,9.963e-05,2]
[380130559,1755564642107,-254.691164,9.963e-05,2]
[380130560,1755564642118,-151.0,9.963e-05,2]
[380130561,1755564642129,-254.691164,9.963e-05,2]
[380130562,1755564642140,-151.0,9.963e-05,2]
[380130563,1755564642149,-254.691164,9.963e-05,2]
[380130564,1755564642159,-151.0,9.963e-05,2]
[380130565,1755564642169,-254.691164,9.963e-05,2]
[380130566,1755564642178,-151.0,9.963e-05,2]
[380130567,1755564642187,-254.691164,9.963e-05,2]
[380130568,1755564642196,-348.760252,9.963e-05,2]
[380130569,1755564642206,-254.691164,9.963e-05,2]
[380130570,1755564642215,-151.0,9.963e-05,2]
[380130571,1755564642224,-151.0,9.963e-05,2]
[380130572,1755564642234,-348.760252,9.963e-05,2]
[380130573,1755564642243,-219.04936169,9.963e-05,2]
[380130574,1755564642316,-35.64180231,9.963e-05,2]
[380130575,1755564642326,-151.0,9.963e-05,2]
[380130576,1755564642335,-348.760252,9.963e-05,2]
[380130577,1755564642344,-254.691164,9.963e-05,2]
[380130578,1755564642353,-97.65644223,9.963e-05,2]
[380130617,1755564647586,-468.52,9.84e-05,2]
[380130618,1755564647596,-553.92150315,9.89e-05,2]
[380130638,1755564995875,1000.0,9.21e-05,2]
[380130639,1755564998037,-177.27426377,9.516e-05,2]
[380130640,1755565006952,-250.0,9.516e-05,2]
[380130641,1755565021354,-155.14761348,9.516e-05,2]
[380130642,1755565029971,-154.49659652,9.516e-05,2]
[380130643,1755565037239,-200.0,9.516e-05,2]
[380130644,1755565046746,406.059261,9.468e-05,2]
[380130645,1755565056010,1000.0,9.333e-05,2]
[380130646,1755565056170,1000.0,8.893e-05,2]
[380130647,1755565142096,416.47,9.054e-05,2]
[380130648,1755565153200,241.509,9.5e-05,2]
[380130649,1755565156435,663.88,9.044e-05,2]
[380130650,1755565197307,5000.0,0.000221,120]
[380130651,1755565243499,664.74,9.007e-05,2]
[380130652,1755565248625,254.22,9.5e-05,2]
[380130653,1755565289125,1000.0,8.982e-05,2]
[380130655,1755565438092,258.04,8.975e-05,2]
[380130656,1755565454067,-150.5042,9.516e-05,5]
[380130657,1755565461771,-200.0,9.516e-05,5]
[380130658,1755565468447,342.9661,9.416e-05,2]
[380130659,1755565471627,-200.0,9.516e-05,5]
[380130660,1755565476515,-150.0,9.516e-05,5]
[380130661,1755565491489,-159.0,9.515e-05,2]
[380130662,1755565506156,-150.0,9.516e-05,5]
[380130663,1755565522882,-335.4352463,9.516e-05,5]
[380130664,1755565529882,-500.0,9.516e-05,5]
[380130666,1755565542200,-203.43848194,9.516e-05,5]
[380130667,1755565551208,-150.0,9.516e-05,5]
[380130668,1755565557277,-26.41,9.515e-05,2]
[380130669,1755565557310,-26.41,9.515e-05,2]
[380130670,1755565557331,-106.18,9.515e-05,2]
[380130671,1755565572760,-70.84848194,9.515e-05,2]
[380130672,1755565573431,-70.84848194,9.515e-05,2]
[380130673,1755565573461,-222.86778982,9.515e-05,2]
[380130674,1755565631731,200.0,9.416e-05,2]
[380130682,1755565674901,169.84,9.245e-05,2]
[380130683,1755565677755,318.152492,9.468e-05,2]
[380130684,1755565687792,-63.08152623,9.516e-05,2]
[380130685,1755565687819,-6.87207176,9.516e-05,5]
[380130686,1755565687842,-63.08152623,9.516e-05,2]
[380130687,1755565687868,-6.87207176,9.516e-05,2]
[380130688,1755565687884,-22.10280402,9.516e-05,2]
[380130689,1755565699452,-300.0,9.516e-05,2]
[380130690,1755565703040,-182.0,9.516e-05,2]
[380130691,1755565719970,-164.5647537,9.515e-05,2]
[380130692,1755565726026,-219.78,9.515e-05,2]
[380130693,1755565733188,-74.6552463,9.515e-05,2]
[380130694,1755565733222,-74.6552463,9.515e-05,2]
[380130695,1755565733248,-150.6895074,9.515e-05,2]
[380130696,1755565742276,-173.2494873,9.515e-05,2]
[380130697,1755565747905,-3.87424094,9.515e-05,2]
[380130698,1755565747933,-161.8452463,9.515e-05,2]
[380130699,1755565747960,-30.74678452,9.515e-05,2]
[380130700,1755565747979,-3.87424094,9.515e-05,2]
[380130701,1755565747998,-129.94372824,9.515e-05,2]
[380130702,1755565748007,-31.90151806,9.516e-05,2]
[380130703,1755565748028,-164.5647537,9.516e-05,2]
[380130704,1755565755480,-337.7842873,9.516e-05,2]
[380130705,1755565759373,200.0,8.994e-05,2]
[380130706,1755565764687,1000.0,9.468e-05,2]
[380130707,1755565765414,-300.0,9.516e-05,2]
[380130708,1755565771407,-245.11452645,9.516e-05,2]
[380130710,1755565773475,245.1145,9.416e-05,2]
[380130711,1755565778983,-152.40011482,9.516e-05,2]
[380130712,1755565787526,-189.65702392,9.516e-05,2]
[380130713,1755565805811,333.13,8.944e-05,2]
[380130772,1755565832364,-4.52137374,9.516e-05,2]
[380130774,1755565832374,-276.51448846,9.689e-05,2]
[380130776,1755565832386,-200.0,9.689e-05,2]
[380130778,1755565832397,-1200.0,9.799e-05,2]
[380130780,1755565832407,-6100.0,9.8e-05,3]
[380130782,1755565832416,-170.0,9.836e-05,7]
[380130784,1755565832426,-9053.60547661,9.853e-05,2]
[380130791,1755565832480,-1167.83504584,9.853e-05,2]
[380130799,1755565832546,-9170.59147755,9.853e-05,2]
[380130801,1755565832556,-300.0,9.859e-05,2]
[380130803,1755565832565,-1191.48,9.86e-05,2]
[380130805,1755565832575,-1597.26,9.86e-05,2]
[380130807,1755565832584,-1077.63,9.86e-05,2]
[380130809,1755565832594,-798.63,9.86e-05,2]
[380130811,1755565832603,-5000.0,9.861e-05,2]
[380130813,1755565832612,-199.1928,9.861e-05,2]
[380130815,1755565832623,-2817.94242593,9.861e-05,2]
[380130818,1755565832634,-150.0,9.869e-05,2]
[380130820,1755565832644,-408.21,9.87e-05,2]
[380130822,1755565832654,-333.2,9.87e-05,2]
[380130824,1755565832664,-165.96,9.87e-05,2]
[380130826,1755565832673,-2360.71,9.87e-05,2]
[380130828,1755565832683,-539.09,9.87e-05,2]
[380130830,1755565832693,-152.64,9.87e-05,2]
[380130832,1755565832703,-468.71,9.87e-05,2]
[380130834,1755565832713,-539.09,9.87e-05,2]
[380130836,1755565832724,-468.71,9.87e-05,2]
[380130838,1755565832734,-1077.58,9.87e-05,2]
[380130840,1755565832744,-798.63,9.87e-05,2]
[380130842,1755565832755,-200.0,9.883e-05,2]
[380130844,1755565832765,-151.0,9.89e-05,2]
[380130846,1755565832775,-10000.0,9.89e-05,2]
[380130848,1755565832786,-1000.0,9.899e-05,2]
[380130850,1755565832797,-12300.0,9.9e-05,3]
[380130852,1755565832807,-406.0,9.935e-05,2]
[380130854,1755565832818,-161.61909858,9.943e-05,2]
[380130856,1755565832827,-500.0,9.943e-05,2]
[380130858,1755565832837,-500.0,9.943e-05,2]
[380130860,1755565832847,-500.0,9.943e-05,2]
[380130862,1755565832856,-500.0,9.943e-05,2]
[380130864,1755565832866,-1161.4918874,9.948e-05,2]
[380130866,1755565832875,-151.0,9.948e-05,2]
[380130868,1755565832885,-151.0,9.948e-05,2]
[380130870,1755565832895,-151.0,9.948e-05,2]
[380130872,1755565832905,-151.0,9.948e-05,2]
[380130874,1755565832914,-283.847374,9.948e-05,2]
[380130876,1755565832924,-151.0,9.948e-05,2]
[380130878,1755565832933,-151.0,9.948e-05,2]
[380130880,1755565832943,-283.847374,9.948e-05,2]
[380130882,1755565832952,-151.0,9.948e-05,2]
[380130884,1755565832961,-283.847374,9.948e-05,2]
[380130886,1755565832970,-151.0,9.948e-05,2]
[380130888,1755565832980,-283.847374,9.948e-05,2]
[380130891,1755565832989,-151.0,9.948e-05,2]
[380130892,1755565832999,-297.340326,9.948e-05,2]
[380130893,1755565833008,-1102.169378,9.948e-05,2]
[380130894,1755565833017,-439.095342,9.948e-05,2]
[380130895,1755565833026,-1102.169378,9.948e-05,2]
[380130896,1755565833035,-439.095342,9.948e-05,2]
[380130897,1755565833045,-439.095342,9.948e-05,2]
[380130898,1755565833053,-995.19996,9.948e-05,2]
[380130899,1755565833062,-189.346723,9.948e-05,2]
[380130900,1755565833072,-995.19996,9.948e-05,2]
[380130901,1755565833081,-189.346723,9.948e-05,2]
[380130902,1755565833092,-995.19996,9.948e-05,2]
[380130903,1755565833101,-189.346723,9.948e-05,2]
[380130904,1755565833110,-281.40794151,9.948e-05,2]
[380130909,1755565833143,-713.79201849,9.948e-05,2]
[380130911,1755565833152,-149.76070262,9.948e-05,2]
[380130917,1755565833203,-39.58602038,9.948e-05,2]
[380130919,1755565833213,-954.71275181,9.948e-05,2]
[380130920,1755565833226,-1808.38514019,9.948e-05,2]
[380130921,1755565833236,-138.7121387,9.948e-05,2]
[380130922,1755565833262,-192.0514613,9.948e-05,2]
[380130923,1755565833271,-297.340326,9.948e-05,2]
[380130924,1755565833281,-2763.097892,9.948e-05,2]
[380130925,1755565833290,-330.7636,9.948e-05,2]
[380130926,1755565833300,-1102.169378,9.948e-05,2]
[380130927,1755565833309,-297.340326,9.948e-05,2]
[380130928,1755565833318,-2763.097892,9.948e-05,2]
[380130929,1755565833327,-330.7636,9.948e-05,2]
[380130930,1755565833337,-297.340326,9.948e-05,2]
[380130931,1755565833347,-2763.097892,9.948e-05,2]
[380130932,1755565833361,-439.095342,9.948e-05,2]
[380130933,1755565833372,-1102.169378,9.948e-05,2]
[380130934,1755565833387,-301.915672,9.948e-05,2]
[380130935,1755565833398,-330.7636,9.948e-05,2]
[380130936,1755565833408,-301.915672,9.948e-05,2]
[380130937,1755565833418,-301.915672,9.948e-05,2]
[380130938,1755565833430,-151.0,9.948e-05,2]
[380130939,1755565833440,-301.915672,9.948e-05,2]
[380130940,1755565833450,-151.0,9.948e-05,2]
[380130941,1755565833461,-225.775992,9.948e-05,2]
[380130942,1755565833473,-197.57506,9.948e-05,2]
[380130943,1755565833483,-546.896047,9.948e-05,2]
[380130944,1755565833493,-197.57506,9.948e-05,2]
[380130945,1755565833503,-197.57506,9.948e-05,2]
[380130946,1755565833513,-546.896047,9.948e-05,2]